fUSD/lending_fUSD_20260106
["ID","MTS","AMOUNT","RATE_DAILY","PERIOD"]
[400506570,1767678654416,-150.0,0.00028185,2]
[400506571,1767678654431,-150.0,0.00028185,2]
[400506572,1767678654444,-150.0,0.00028185,2]
[400506573,1767678654456,-320.46,0.00028185,2]
[400506574,1767678654467,-1329.0,0.0002835,2]
[400506575,1767678654479,-1896.041,0.0002835,2]
[400506576,1767678654492,-2435.0,0.0002835,2]
[400506577,1767678654504,-166.66,0.0002836,2]
[400506578,1767678654516,-200.0,0.000284,2]
[400506579,1767678654529,-153.86982868,0.000285,2]
[400506580,1767678654541,-2705.661396,0.000285,2]
[400506581,1767678654555,-393.98,0.000287,14]
[400506582,1767678654573,-151.0,0.00028766,2]
[400506583,1767678654585,-700.0,0.00028866,14]
[400506584,1767678654600,-5532.0,0.000289,5]
[400506585,1767678654612,-156.0,0.00028997,14]
[400506586,1767678654624,-1500.0,0.00029,2]
[400506587,1767678654639,-152.0,0.0002904,10]
[400506588,1767678654650,-167.87119733,0.0002904,5]
[400506589,1767678654661,-541.25263989,0.0002914,14]
[400506590,1767678654673,-500.0,0.0002914,14]
[400506591,1767678654685,-303.92,0.00029178,2]
[400506592,1767678654697,-166.66,0.00029212,2]
[400506593,1767678654710,-1422.263038,0.00029324,2]
[400506594,1767678654722,-34230.1264819,0.00029325,2]
[400506595,1767678654734,-1500.0,0.000295,2]
[400506596,1767678654747,-9035.0,0.00029777,2]
[400506597,1767678654760,-505.0,0.00029877,2]
[400506598,1767678654771,-78628.16365557,0.000299,2]
[400506599,1767678654783,-236.4823593,0.0002999,2]
[400506600,1767678654796,-674.98361452,0.0002999,2]
[400506601,1767678654807,-19804.25647821,0.0003,2]
[400506602,1767678654820,-3842.1640897,0.0003,12]
[400506603,1767678654832,-818.90916,0.0003,2]
[400506604,1767678654844,-618.52550302,0.0003,5]
[400506605,1767678654855,-4702.40653453,0.0003,2]
[400506606,1767678654867,-4138.14285717,0.0003,2]
[400506607,1767678654878,-1811.29226352,0.0003,2]
[400506608,1767678654890,-439.75628682,0.0003,2]
[400506609,1767678654902,-162.46983829,0.0003,2]
[400506610,1767678654914,-23316.07880634,0.0003,2]
[400506611,1767678654925,-150.0,0.0003,2]
[400506612,1767678654936,-160.5267365,0.0003,14]
[400506613,1767678654949,-2134.0,0.0003,20]
[400506614,1767678654966,-413948.47472727,0.0003,2]
[400506615,1767678654994,-8242.04724838,0.0003,2]
[400506616,1767678655008,-1668.8510257,0.0003,2]
[400506617,1767678655023,-4065.58012154,0.0003,2]
[400506618,1767678655473,-1308.51258046,0.0001935,2]
[400506619,1767678655665,-3524.57141954,0.0001935,2]
[400506620,1767678655675,-151.0,0.0002099,2]
[400506621,1767678655686,-151.0,0.00023,2]
[400506622,1767678655696,-151.0,0.000248,7]
[400506623,1767678655708,-500.0,0.00025583,2]
[400506624,1767678655719,-500.0,0.00025584,2]
[400506625,1767678655730,-500.0,0.00025585,2]
[400506626,1767678655740,-500.0,0.00025586,2]
[400506627,1767678655750,-500.0,0.00025587,2]
[400506628,1767678655761,-500.0,0.00025588,2]
[400506629,1767678655771,-500.0,0.00025589,2]
[400506630,1767678655783,-500.0,0.0002559,2]
[400506631,1767678655794,-500.0,0.00025591,2]
[400506632,1767678655804,-500.0,0.00025592,2]
[400506633,1767678655815,-500.0,0.00025593,2]
[400506634,1767678655826,-500.0,0.00025594,2]
[400506635,1767678655836,-500.0,0.00025595,2]
[400506636,1767678655847,-500.0,0.00025596,2]
[400506637,1767678655858,-500.0,0.00025597,2]
[400506638,1767678655868,-500.0,0.00025598,2]
[400506639,1767678655879,-500.0,0.00025599,2]
[400506640,1767678655889,-500.0,0.000256,2]
[400506641,1767678655900,-500.0,0.00025601,2]
[400506642,1767678655910,-500.0,0.00025602,2]
[400506643,1767678655921,-151.0,0.00027397,7]
[400506644,1767678655932,-151.0,0.00027397,7]
[400506645,1767678655942,-151.0,0.00027397,7]
[400506646,1767678655954,-151.0,0.00027397,7]
[400506647,1767678655965,-151.0,0.00027397,7]
[400506648,1767678655977,-151.0,0.00027397,7]
[400506649,1767678655988,-151.0,0.00027397,7]
[400506650,1767678655999,-212.638745,0.00027397,7]
[400506651,1767678656009,-171044.29104517,0.0003,2]
[400506653,1767679019070,997.9,0.00032877,120]
[400506670,1767679238809,1241.6,0.00032877,120]
[400506671,1767679296238,-776.843,0.00016689,2]
[400506672,1767679296260,-1223.157,0.0001693,2]
[400506675,1767679621379,487.02,0.00013699,2]
[400506676,1767679831479,-3172.84490806,0.00016829,2]
[400506677,1767679831489,-300.0,0.00016928,2]
[400506678,1767679831498,-1200.0,0.00016928,2]
[400506679,1767679831508,-293.0,0.00016928,2]
[400506680,1767679831517,-5467.07832542,0.00016929,2]
[400506683,1767679837384,-552.59834492,0.00016928,2]
[400506684,1767679837393,-182.06115909,0.00016928,2]
[400506685,1767679837404,-500.0,0.00016928,2]
[400506686,1767679837414,-500.0,0.00016928,2]
[400506687,1767679837424,-500.0,0.00016928,2]
[400506688,1767679837434,-500.0,0.00016928,2]
[400506689,1767679837444,-197.21112731,0.00016928,2]
[400506690,1767679837454,-500.0,0.00016928,2]
[400506691,1767679837463,-240.46264939,0.00016928,2]
[400506692,1767679837473,-613.64834502,0.00016928,2]
[400506693,1767679837483,-500.0,0.00016928,2]
[400506694,1767679837493,-500.0,0.00016928,2]
[400506695,1767679837502,-500.0,0.00016928,2]
[400506696,1767679837512,-500.0,0.00016928,2]
[400506697,1767679837522,-500.0,0.00016928,2]
[400506698,1767679837531,-500.0,0.00016928,2]
[400506699,1767679837540,-500.0,0.00016928,2]
[400506700,1767679837549,-250.0,0.00016928,2]
[400506701,1767679837559,-500.0,0.00016928,2]
[400506702,1767679837568,-500.0,0.00016928,2]
[400506703,1767679837578,-500.0,0.00016928,2]
[400506704,1767679837587,-500.0,0.00016928,2]
[400506705,1767679837597,-500.0,0.00016928,2]
[400506706,1767679837607,-994532.92167458,0.00016929,2]
[400506707,1767679837616,-250.0,0.00016929,2]
[400506708,1767679837625,-2500.0,0.0001693,2]
[400506709,1767679837634,-4409.70028695,0.00016931,2]
[400506710,1767679837644,-2000.0,0.00017,7]
[400506711,1767679837653,-500.0,0.00017029,2]
[400506712,1767679837662,-500.0,0.00017029,2]
[400506713,1767679837671,-515.32672997,0.00017029,2]
[400506714,1767679837680,-25685.2024,0.00017031,2]
[400506716,1767679837689,-500.0,0.0001713,2]
[400506718,1767679837698,-568.53922051,0.0001713,2]
[400506720,1767679837707,-166.66,0.00017209,2]
[400506722,1767679837716,-151.0,0.00017306,2]
[400506723,1767679837726,-151.0,0.00017306,2]
[400506726,1767679837736,-151.0,0.00017317,2]
[400506727,1767679837745,-151.0,0.00017317,2]
[400506729,1767679837754,-166.66,0.00017571,2]
[400506731,1767679837764,-166.66,0.00017666,2]
[400506733,1767679837773,-1000.0,0.000178,2]
[400506735,1767679837782,-166.66,0.00017933,2]
[400506737,1767679837792,-500.0,0.00017973,2]
[400506739,1767679837801,-150.0,0.00018,7]
[400506741,1767679837810,-157.93,0.00018102,2]
[400506743,1767679837820,-158.06,0.00018169,2]
[400506745,1767679837829,-224.99453817,0.00018212,2]
[400506747,1767679837838,-207556.41929864,0.00018222,2]
[400506749,1767679837847,-166.66,0.00018295,2]
[400506751,1767679837857,-1000.0,0.00018372,2]
[400506753,1767679837866,-166.66,0.00018395,2]
[400506755,1767679837876,-420.0,0.0001849,2]
[400506757,1767679837886,-1000.0,0.00018521,2]
[400506759,1767679837895,-1680.0,0.00018582,2]
[400506761,1767679837905,-250.0,0.00018621,2]
[400506763,1767679837914,-250.0,0.00018621,2]
[400506765,1767679837924,-300.0,0.00018622,2]
[400506767,1767679837933,-166.66,0.00018658,2]
[400506769,1767679837943,-151.51,0.000188,2]
[400506771,1767679837955,-3172.84490802,0.00018905,2]
[400506773,1767679837965,-166.66,0.0001902,2]
[400506775,1767679837974,-4409.70028695,0.00019041,2]
[400506777,1767679837984,-1000.0,0.00019061,2]
[400506779,1767679837995,-506.65163513,0.00019068,2]
[400506781,1767679838008,-229.53168465,0.00019082,2]
[400506783,1767679838018,-166.66,0.00019124,2]
[400506785,1767679838027,-3006.07249481,0.00019178,2]
[400506787,1767679838037,-150.54524676,0.00019178,2]
[400506789,1767679838047,-1000.0,0.0001975,2]
[400506791,1767679838056,-166.66,0.00019853,2]
[400506793,1767679838066,-150.0,0.0002,2]
[400506795,1767679838076,-150.0,0.0002,2]
[400506797,1767679838086,-195.08058581,0.0002,2]
[400506799,1767679838096,-370.82279925,0.0002017,2]
[400506801,1767679838105,-400.0,0.0002017,2]
[400506803,1767679838115,-402.77588387,0.0002017,2]
[400506805,1767679838124,-487.02,0.00020187,2]
[400506807,1767679838133,-587.0,0.00020197,2]
[400506809,1767679838143,-343.99830505,0.00020261,2]
[400506811,1767679838153,-2351.0,0.00020398,2]
[400506813,1767679838162,-1000.0,0.00020439,2]
[400506814,1767679838171,-158.06,0.0002044,2]
[400506816,1767679838181,-1205.815,0.00020443,2]
[400506818,1767679838190,-914.0,0.00020443,2]
[400506820,1767679838200,-6549.0,0.00020443,2]
[400506822,1767679838210,-2435.0,0.00020443,2]
[400506824,1767679838220,-193.55,0.00020548,2]
[400506826,1767679838229,-1405.0,0.0002055,2]
[400506828,1767679838243,-616.385,0.0002055,2]
[400506831,1767679838253,-1329.0,0.0002055,2]
[400506832,1767679838262,-1266.0,0.0002055,2]
[400506835,1767679838272,-435.51,0.0002055,2]
[400506837,1767679838282,-2336.22346929,0.00020556,2]
[400506838,1767679838291,-166.66,0.00020582,2]
[400506841,1767679838301,-476.79,0.00020627,2]
[400506843,1767679838311,-400.0,0.0002087,2]
[400506844,1767679838320,-300.0,0.0002087,2]
[400506847,1767679838329,-300.0,0.0002087,2]
[400506849,1767679838339,-400.0,0.0002087,2]
[400506850,1767679838348,-476.79,0.00020901,2]
[400506852,1767679838358,-150.0,0.00020973,2]
[400506854,1767679838367,-3172.84490802,0.0002098,2]
[400506856,1767679838377,-500.0,0.0002098,3]
[400506859,1767679838386,-1000.0,0.00021128,2]
[400506861,1767679838406,-4409.70028695,0.0002115,2]
[400506863,1767679838417,-476.79,0.00021175,2]
[400506865,1767679838427,-476.79,0.00021449,2]
[400506867,1767679838437,-250.0,0.00021521,2]
[400506869,1767679838446,-159.71,0.00021723,2]
[400506871,1767679838456,-299.33761981,0.00021879,2]
[400506873,1767679838466,-151.51,0.00021908,2]
[400506875,1767679838476,-5000.0,0.00021918,2]
[400506877,1767679838486,-800.0,0.00021918,2]
[400506879,1767679838496,-800.0,0.00021918,2]
[400506881,1767679838505,-800.0,0.00021918,2]
[400506883,1767679838515,-800.0,0.00021918,2]
[400506885,1767679838525,-800.0,0.00021918,2]
[400506887,1767679838534,-800.0,0.00021918,2]
[400506889,1767679838544,-800.0,0.00021918,2]
[400506891,1767679838554,-800.0,0.00021918,2]
[400506893,1767679838563,-150.0,0.00021918,2]
[400506895,1767679838573,-150.0,0.00021918,2]
[400506898,1767679838584,-175.84813518,0.00021973,2]
[400506900,1767679838594,-5399.61,0.00022,7]
[400506902,1767679838604,-823.0,0.00022061,2]
[400506904,1767679838615,-350.0,0.00022068,2]
[400506906,1767679838625,-400.0,0.0002207,2]
[400506908,1767679838634,-300.0,0.0002207,2]
[400506909,1767679838644,-200.0,0.000221,2]
[400506912,1767679838655,-250.0,0.00022367,2]
[400506914,1767679838665,-3292.0,0.00022392,2]
[400506916,1767679838675,-9999.99,0.00022562,2]
[400506918,1767679838685,-999.99,0.00022562,2]
[400506920,1767679838695,-150.99,0.00022562,2]
[400506922,1767679838705,-450.0,0.00022616,2]
[400506924,1767679838714,-158.06,0.00022711,2]
[400506926,1767679838723,-3172.84490802,0.00023056,2]
[400506928,1767679838733,-550.0,0.00023164,2]
[400506930,1767679838743,-4409.70028695,0.0002326,2]
[400506932,1767679838752,-1200.0,0.00023443,2]
[400506934,1767679838762,-914.0,0.00023443,2]
[400506936,1767679838775,-6549.0,0.00023443,2]
[400506938,1767679838785,-1295.021,0.0002355,2]
[400506940,1767679838795,-1329.0,0.0002355,2]
[400506942,1767679838805,-1266.0,0.0002355,2]
[400506944,1767679838814,-650.0,0.00023712,2]
[400506946,1767679838823,-1152.0,0.00024097,2]
[400506948,1767679838832,-419.58933012,0.0002426,2]
[400506950,1767679838842,-1021.0,0.00024343,2]
[400506952,1767679838852,-4587.0,0.0002458,2]
[400506954,1767679838861,-5800.0,0.00024767,2]
[400506957,1767679838872,-298.31721101,0.0002479,2]
[400506959,1767679838882,-151.51,0.0002479,2]
[400506960,1767679838891,-151.51,0.0002479,2]
[400506963,1767679838901,-151.51,0.0002479,2]
[400506965,1767679838910,-151.51,0.0002479,2]
[400506967,1767679838920,-510872.658286,0.000248,3]
[400506969,1767679838929,-233.74615485,0.00024882,2]
[400506970,1767679838939,-151.51,0.0002489,2]
[400506972,1767679838950,-151.51,0.0002489,2]
[400506974,1767679838959,-151.51,0.0002489,2]
[400506976,1767679838968,-151.51,0.0002489,2]
[400506978,1767679838978,-37677.51308975,0.000249,3]
[400506984,1767679839028,-895.5214939,0.000249,3]
[400506987,1767679839041,-637.96185862,0.000249,3]
[400506989,1767679839052,-1260.78888652,0.000249,3]
[400506991,1767679839063,-253.4450449,0.000249,3]
[400506994,1767679839083,-6478.71014821,0.000249,3]
[400506996,1767679839095,-1930.63392737,0.000249,3]
[400506998,1767679839107,-1798.36548052,0.000249,3]
[400507001,1767679839119,-17374.0222797,0.000249,3]
[400507043,1767679839512,-467.64,0.00023443,2]
[400507046,1767679839525,-1967.36,0.00023443,2]
[400507048,1767679839535,-358953.03550951,0.000249,3]
[400507050,1767679839544,-158.06,0.00024982,2]
[400507052,1767679839554,-1000.0,0.0002513,7]
[400507054,1767679839564,-3172.84490802,0.00025132,2]
[400507056,1767679839573,-2000.0,0.000252,2]
[400507058,1767679839582,-1000.0,0.00025205,2]
[400507060,1767679839592,-300.0,0.000253,2]
[400507062,1767679839601,-978.0,0.000253,2]
[400507064,1767679839611,-306.0,0.000253,2]
[400507066,1767679839620,-7495.78943366,0.00025359,3]
[400507068,1767679839630,-4409.70028695,0.00025369,2]
[400507070,1767679839639,-177.69,0.0002544,2]
[400507072,1767679839649,-1000.0,0.00025479,2]
[400507074,1767679839658,-1000.0,0.000255,2]
[400507076,1767679839667,-1000.0,0.00025753,2]
[400507078,1767679839676,-906.0,0.00026,2]
[400507080,1767679839686,-1000.0,0.00026027,2]
[400507082,1767679839695,-1000.0,0.00026301,2]
[400507084,1767679839706,-1613.0,0.00026322,2]
[400507086,1767679839716,-152.0,0.0002635,3]
[400507088,1767679839725,-914.0,0.00026443,2]
[400507090,1767679839734,-2435.0,0.00026443,2]
[400507092,1767679839744,-7495.78943366,0.0002649,3]
[400507094,1767679839753,-5399.61,0.000265,7]
[400507096,1767679839762,-850.905,0.0002655,2]
[400507098,1767679839771,-1000.0,0.00026575,2]
[400507100,1767679839780,-487.02,0.00026676,2]
[400507102,1767679839790,-158.06,0.00027253,2]
[400507104,1767679839800,-156.06071446,0.00027369,2]
[400507106,1767679839812,-360.2,0.00027397,5]
[400507108,1767679839821,-425.2,0.00027397,6]
[400507110,1767679839830,-151.0,0.00027397,2]
[400507112,1767679839839,-500.0,0.00027397,20]
[400507114,1767679839848,-4409.70028695,0.00027479,2]
[400507116,1767679839857,-372.08101705,0.00027546,2]
[400507119,1767679839867,-177.69,0.0002762,2]
[400507121,1767679839878,-233.74615484,0.00027846,2]
[400507123,1767679839887,-7495.78943366,0.00027878,3]
[400507124,1767679839897,-500.0,0.00027888,7]
[400507127,1767679839908,-200.0,0.00027974,2]
[400507128,1767679839918,-453.0,0.00028,2]
[400507130,1767679839927,-500.0,0.00028356,14]
[400507133,1767679839937,-500.0,0.00028356,14]
[400507134,1767679839946,-500.0,0.00028356,14]
[400507137,1767679839956,-1479.0,0.00028551,2]
[400507139,1767679839965,-151.51,0.00028595,2]
[400507140,1767679839974,-1479.0,0.00028605,2]
[400507142,1767679839983,-1479.0,0.00028656,2]
[400507144,1767679839993,-1479.0,0.00028656,2]
[400507146,1767679840007,-1479.0,0.00028696,2]
[400507148,1767679840017,-275.79,0.000287,14]
[400507151,1767679840028,-613.0,0.00028751,2]
[400507153,1767679840037,-151.0,0.00028766,2]
[400507155,1767679840046,-295.57509702,0.00028882,7]
[400507157,1767679840055,-2000.0,0.000289,2]
[400507159,1767679840065,-1479.0,0.00028922,2]
[400507161,1767679840074,-7495.78943366,0.00028937,3]
[400507183,1767679840331,-1479.0,0.00028947,2]
[400507184,1767679840341,-1479.0,0.00028972,2]
[400507185,1767679840350,-341.68,0.00028979,2]
[400507186,1767679840359,-453.0,0.00029,2]
[400507187,1767679840367,-152.0,0.00029046,4]
[400507188,1767679840376,-3712.59408154,0.000291,2]
[400507189,1767679840386,-500.0,0.00029178,14]
[400507190,1767679840394,-1000.0,0.000292,2]
[400507192,1767679840405,-1479.0,0.00029251,2]
[400507194,1767679840414,-1484.0,0.0002932,2]
[400507195,1767679840423,-1479.0,0.00029409,7]
[400507197,1767679840432,-914.0,0.00029443,2]
[400507200,1767679840442,-1479.0,0.00029449,2]
[400507202,1767679840451,-7495.78943366,0.00029472,3]
[400507203,1767679840461,-1479.0,0.00029483,2]
[400507205,1767679840470,-300.0,0.00029574,2]
[400507207,1767679840479,-300.0,0.00029574,2]
[400507210,1767679840488,-300.0,0.00029575,2]
[400507212,1767679840497,-300.0,0.00029575,2]
[400507214,1767679840511,-300.0,0.00029579,2]
[400507216,1767679840520,-300.0,0.0002958,2]
[400507218,1767679840529,-300.0,0.00029587,2]
[400507220,1767679840538,-4409.70028695,0.00029588,2]
[400507222,1767679840547,-300.0,0.0002959,2]
[400507224,1767679840556,-300.0,0.00029592,2]
[400507226,1767679840565,-300.0,0.00029594,2]
[400507228,1767679840574,-300.0,0.00029596,2]
[400507230,1767679840583,-300.0,0.000296,2]
[400507232,1767679840592,-300.0,0.000296,2]
[400507234,1767679840601,-300.0,0.00029604,2]
[400507236,1767679840609,-300.0,0.00029604,2]
[400507238,1767679840618,-300.0,0.00029607,2]
[400507239,1767679840628,-300.0,0.00029612,2]
[400507242,1767679840638,-300.0,0.00029612,2]
[400507243,1767679840647,-300.0,0.00029615,2]
[400507246,1767679840656,-300.0,0.00029615,2]
[400507248,1767679840665,-300.0,0.00029617,2]
[400507250,1767679840674,-300.0,0.00029629,2]
[400507252,1767679840683,-300.0,0.0002963,2]
[400507254,1767679840693,-300.0,0.00029632,2]
[400507256,1767679840702,-300.0,0.00029632,2]
[400507258,1767679840711,-300.0,0.00029633,2]
[400507260,1767679840721,-300.0,0.00029637,2]
[400507262,1767679840730,-300.0,0.00029637,2]
[400507264,1767679840739,-300.0,0.00029637,2]
[400507266,1767679840748,-300.0,0.0002964,2]
[400507268,1767679840757,-300.0,0.00029645,2]
[400507270,1767679840766,-289.04148,0.00029645,7]
[400507272,1767679840775,-289.04148,0.00029645,7]
[400507274,1767679840785,-289.04148,0.00029645,7]
[400507276,1767679840794,-289.04148,0.00029645,7]
[400507278,1767679840803,-300.0,0.00029647,2]
[400507280,1767679840812,-300.0,0.00029652,2]
[400507282,1767679840821,-300.0,0.00029656,2]
[400507284,1767679840830,-300.0,0.00029658,2]
[400507286,1767679840839,-300.0,0.0002966,2]
[400507288,1767679840848,-300.0,0.00029661,2]
[400507290,1767679840857,-300.0,0.00029668,2]
[400507292,1767679840867,-300.0,0.00029672,2]
[400507294,1767679840876,-263.812146,0.00029672,7]
[400507296,1767679840885,-300.0,0.00029673,2]
[400507298,1767679840894,-300.0,0.00029682,2]
[400507300,1767679840905,-300.0,0.00029682,2]
[400507302,1767679840914,-300.0,0.00029696,2]
[400507304,1767679840923,-300.0,0.00029698,2]
[400507306,1767679840932,-300.0,0.00029699,2]
[400507308,1767679840941,-300.0,0.00029702,2]
[400507310,1767679840950,-300.0,0.00029714,2]
[400507312,1767679840959,-300.0,0.00029716,2]
[400507314,1767679840968,-300.0,0.00029717,2]
[400507316,1767679840978,-300.0,0.00029719,2]
[400507317,1767679840987,-300.0,0.00029725,2]
[400507319,1767679840996,-300.0,0.00029726,2]
[400507321,1767679841008,-300.0,0.00029727,2]
[400507323,1767679841017,-300.0,0.00029728,2]
[400507326,1767679841026,-300.0,0.00029729,2]
[400507328,1767679841036,-300.0,0.00029737,2]
[400507330,1767679841045,-300.0,0.00029742,2]
[400507332,1767679841056,-300.0,0.00029743,2]
[400507334,1767679841065,-300.0,0.00029748,2]
[400507336,1767679841075,-300.0,0.00029748,2]
[400507338,1767679841084,-300.0,0.00029753,2]
[400507340,1767679841094,-300.0,0.00029754,2]
[400507342,1767679841102,-300.0,0.00029755,2]
[400507344,1767679841112,-300.0,0.00029757,2]
[400507346,1767679841121,-300.0,0.0002976,2]
[400507348,1767679841130,-300.0,0.00029764,2]
[400507350,1767679841139,-300.0,0.00029768,2]
[400507352,1767679841148,-152.33232489,0.00029768,2]
[400507354,1767679841157,-300.0,0.00029773,2]
[400507356,1767679841166,-300.0,0.00029779,2]
[400507358,1767679841175,-150.0,0.00029782,2]
[400507360,1767679841184,-300.0,0.00029784,2]
[400507362,1767679841192,-300.0,0.00029787,2]
[400507364,1767679841201,-300.0,0.00029791,2]
[400507366,1767679841211,-300.0,0.00029797,2]
[400507368,1767679841219,-300.0,0.00029797,2]
[400507370,1767679841228,-300.0,0.00029798,2]
[400507372,1767679841237,-300.0,0.00029799,2]
[400507374,1767679841246,-169.19946053,0.000298,7]
[400507376,1767679841255,-300.0,0.000298,2]
[400507377,1767679841264,-300.0,0.00029807,2]
[400507380,1767679841274,-300.0,0.00029809,2]
[400507381,1767679841284,-300.0,0.00029816,2]
[400507384,1767679841293,-300.0,0.00029825,2]
[400507386,1767679841303,-300.0,0.00029825,2]
[400507387,1767679841313,-300.0,0.00029826,2]
[400507390,1767679841323,-151.51,0.00029835,2]
[400507392,1767679841332,-300.0,0.0002984,2]
[400507394,1767679841341,-300.0,0.00029843,2]
[400507395,1767679841351,-300.0,0.00029844,2]
[400507398,1767679841360,-300.0,0.00029844,10]
[400507399,1767679841369,-6000.212294,0.00029845,2]
[400507401,1767679841379,-3435.6518807,0.00029845,2]
[400507403,1767679841389,-95702.8782005,0.00029845,2]
[400507406,1767679841398,-1050.9506367,0.00029845,2]
[400507408,1767679841408,-317.3497794,0.00029845,2]
[400507410,1767679841417,-156.221145,0.00029845,7]
[400507412,1767679841427,-153.020585,0.00029845,7]
[400507414,1767679841436,-177.69,0.00029867,2]
[400507416,1767679841445,-505.0,0.00029877,2]
[400507418,1767679841454,-150.0,0.00029885,2]
[400507420,1767679841463,-1484.0,0.00029907,7]
[400507422,1767679841472,-177.69,0.00029933,2]
[400507424,1767679841481,-400.0,0.0002997,2]
[400507425,1767679841490,-300.0,0.0002997,2]
[400507428,1767679841500,-151.51,0.0002999,2]
[400507430,1767679841510,-151.51,0.0002999,2]
[400507432,1767679841519,-300.0,0.00029999,10]
[400507434,1767679841529,-500.0,0.0003,14]
[400507436,1767679841539,-221030.75583194,0.0003,2]
[400507438,1767679841548,-1221.46,0.0003,30]
[400507440,1767679841557,-2000.0,0.0003,3]
[400507442,1767679841566,-249.83561912,0.0003,2]
[400507444,1767679841575,-150.0,0.0003,2]
[400507446,1767679841584,-150.0,0.0003,2]
[400507448,1767679841593,-5399.61,0.0003,7]
[400507450,1767679841603,-500.0,0.0003,14]
[400507452,1767679841612,-150.0,0.0003,2]
[400507454,1767679841621,-272.96955869,0.0003,2]
[400507456,1767679841630,-150.0,0.0003,2]
[400507458,1767679841639,-345.42238638,0.0003,2]
[400507460,1767679841648,-150.0,0.0003,2]
[400507462,1767679841657,-150.0,0.0003,2]
[400507465,1767679841676,-264.97139218,0.0003,2]
[400507467,1767679841685,-200.0,0.0003,2]
[400507469,1767679841695,-151.0,0.0003,7]
[400507471,1767679841704,-151.0,0.0003,7]
[400507473,1767679841714,-150.0,0.0003,7]
[400507475,1767679841723,-150.0,0.0003,7]
[400507477,1767679841733,-150.0,0.0003,7]
[400507479,1767679841742,-150.0,0.0003,7]
[400507481,1767679841751,-150.0,0.0003,7]
[400507483,1767679841760,-150.0,0.0003,7]
[400507485,1767679841770,-150.0,0.0003,7]
[400507487,1767679841779,-150.0,0.0003,7]
[400507488,1767679841788,-150.0,0.0003,7]
[400507489,1767679841798,-150.0,0.0003,7]
[400507490,1767679841807,-150.0,0.0003,7]
[400507491,1767679841816,-150.0,0.0003,7]
[400507492,1767679841825,-150.0,0.0003,7]
[400507493,1767679841835,-150.0,0.0003,7]
[400507494,1767679841844,-150.0,0.0003,7]
[400507495,1767679841854,-150.0,0.0003,7]
[400507496,1767679841863,-150.0,0.0003,7]
[400507497,1767679841873,-150.0,0.0003,7]
[400507498,1767679841883,-150.0,0.0003,7]
[400507499,1767679841893,-150.0,0.0003,7]
[400507501,1767679841903,-150.0,0.0003,7]
[400507503,1767679841913,-150.0,0.0003,7]
[400507505,1767679841923,-150.0,0.0003,7]
[400507507,1767679841934,-150.0,0.0003,7]
[400507509,1767679841944,-150.0,0.0003,7]
[400507511,1767679841954,-150.0,0.0003,7]
[400507513,1767679841965,-150.0,0.0003,7]
[400507515,1767679841976,-150.0,0.0003,7]
[400507517,1767679841986,-150.0,0.0003,7]